bitfinex/quotes_SOLUSD_20220109
["timestamp","ask_amount","ask_price","bid_price","bid_amount"]
[1641752791008,12.3708,144.45,144.33,1.231]
[1641752791609,3.0,144.44,144.33,1.231]
[1641752791814,1.731,144.43,144.32,10.03]
[1641752792011,10.3926,144.41,144.32,10.03]
[1641752792214,1.731,144.4,144.32,10.03]
[1641752792816,23.15769362,144.39,144.28,1.731]
[1641752793013,1.732,144.38,144.28,1.731]
[1641752793214,10.3946,144.38,144.29,10.3937]
[1641752793917,23.15769362,144.39,144.29,10.3937]
[1641752794120,23.15769362,144.39,144.3,1.732]
[1641752794317,23.15769362,144.39,144.31,10.3921]
[1641752794518,23.15769362,144.39,144.32,1.731]
[1641752794818,23.15769362,144.39,144.32,1.981]
[1641752795118,1.731,144.38,144.32,1.731]
[1641752795920,1.731,144.38,144.25,10.03]
[1641752796118,1.731,144.38,144.26,3.0]
[1641752796319,10.3959,144.36,144.26,3.0]
[1641752796618,4.732,144.35,144.26,3.0]
[1641752796817,3.0,144.35,144.24,3.0]
[1641752797218,3.0,144.37,144.24,3.0]
[1641752797419,10.3969,144.35,144.26,9.8959]
[1641752797823,25.72504886,144.33,144.27,3.0]
[1641752798019,27.45704886,144.33,144.27,3.0]
[1641752798219,25.72504886,144.33,144.27,3.0]
[1641752798423,25.72504886,144.33,144.23,1.732]
[1641752798424,3.0,144.34,144.23,4.732]
[1641752798619,72.0381,144.36,144.23,10.701]
[1641752798819,72.0381,144.36,144.24,10.03]
[1641752799020,72.0381,144.36,144.25,4.732]
[1641752799221,72.0381,144.36,144.26,10.03]
[1641752799419,98.33237991,144.36,144.27,1.982]
[1641752799619,26.29427991,144.36,144.27,4.982]
[1641752800020,26.29427991,144.36,144.31,10.3904]
[1641752800220,76.8156,144.4,144.31,10.3904]
[1641752800423,76.8156,144.4,144.32,1.731]
[1641752800622,76.8156,144.4,144.3,34.6332]
[1641752800821,76.8156,144.4,144.31,1.731]
[1641752801025,22.54260377,144.39,144.31,1.731]
[1641752801824,22.54260377,144.39,144.34,10.39]
[1641752803255,22.54260377,144.39,144.35,3.0]
[1641752804255,76.8156,144.4,144.35,13.3894]
[1641752804455,76.8156,144.4,144.32,0.25]
[1641752804456,1.731,144.44,144.36,0.25]
[1641752804658,122.7073,144.45,144.36,3.25]
[1641752804857,73.9126,144.45,144.36,4.981]
[1641752805058,1.731,144.47,144.36,4.981]
[1641752805258,23.26246792,144.46,144.36,4.981]
[1641752805456,1.731,144.45,144.36,10.3883]
[1641752805856,1.731,144.45,144.37,0.25]
[1641752806056,23.26246792,144.46,144.37,1.981]
[1641752806260,23.26246792,144.46,144.37,0.25]
[1641752806656,23.26246792,144.46,144.38,10.3871]
[1641752806856,23.26246792,144.46,144.37,0.25]
[1641752806857,1.731,144.45,144.37,0.25]
[1641752807258,1.731,144.45,144.33,11.761]
[1641752807459,1.731,144.45,144.34,0.25]
[1641752807665,0.25,144.44,144.34,0.25]
[1641752807859,1.731,144.43,144.33,11.761]
[1641752808063,1.731,144.43,144.34,10.3897]
[1641752808460,3.0,144.42,144.34,10.3897]
[1641752808661,1.731,144.41,144.34,10.3897]
[1641752808961,25.62027456,144.4,144.34,10.3897]
[1641752810962,25.62027456,144.4,144.3,36.3638]
[1641752811162,1.731,144.39,144.32,10.3911]
[1641752811363,1.981,144.39,144.32,10.3911]
[1641752812166,10.3916,144.41,144.4,14.43539998]
[1641752812366,127.7621,144.49,144.4,21.38839998]
[1641752812567,10.03,144.46,144.4,23.16922584]
[1641752812763,88.89489724,144.5,144.41,4.98]
[1641752813163,88.89489724,144.5,144.42,24.04239099]
[1641752813363,88.89489724,144.5,144.45,10.3821]
[1641752813565,88.89489724,144.5,144.45,18.2451]
[1641752813767,88.89489724,144.5,144.45,7.863]
[1641752814567,1.73,144.51,144.41,60.30294578]
[1641752814767,1.73,144.51,144.43,10.3833]
[1641752814966,3.0,144.5,144.43,10.3833]
[1641752815166,1.73,144.49,144.43,10.3833]
[1641752815367,1.73,144.49,144.4,14.43539998]
[1641752815967,3.0,144.48,144.4,14.43539998]
[1641752816268,26.08792563,144.45,144.4,14.43539998]
[1641752816468,1.731,144.44,144.4,14.43539998]
[1641752816668,26.08792563,144.45,144.4,14.43539998]
[1641752816870,1.731,144.44,144.4,14.43539998]
[1641752818169,27.81892563,144.45,144.4,14.43539998]
[1641752820570,38.20782563,144.45,144.4,14.43539998]
[1641752820971,0.25,144.44,144.4,14.43539998]
[1641752821172,26.08792563,144.45,144.4,14.43539998]
[1641752822475,1.731,144.44,144.4,14.43539998]
[1641752822675,10.3897,144.44,144.4,14.43539998]
[1641752822877,26.08792563,144.45,144.4,14.43539998]
[1641752824179,36.47672563,144.45,144.4,14.43539998]
[1641752824381,4.731,144.44,144.4,14.43539998]
[1641752825381,10.3913,144.42,144.4,14.43539998]
[1641752825582,73.06429999,144.41,144.4,14.43539998]
[1641752826781,83.45619999,144.41,144.4,14.43539998]
[1641752826983,83.70619999,144.41,144.4,14.43539998]
[1641752827381,6.31429999,144.41,144.4,14.43539998]
[1641752827581,34.25,144.41,144.4,14.43539998]
[1641752827782,4.731,144.44,144.4,14.43539998]
[1641752827985,3.03210002,144.41,144.4,20.13439998]
[1641752828385,3.0,144.44,144.4,20.13439998]
[1641752828586,4.731,144.44,144.4,20.13439998]
[1641752829210,1.731,144.44,144.4,14.43539998]
[1641752831915,0.25,144.43,144.4,14.43539998]
[1641752832315,6.06429999,144.42,144.4,14.43539998]
[1641752832915,7.79529999,144.42,144.4,14.43539998]
[1641752833116,61.0,144.41,144.34,1.731]
[1641752834019,61.0,144.41,144.34,12.1211]
[1641752834418,1.731,144.4,144.34,1.731]
[1641752835219,22.79481685,144.39,144.34,1.731]
[1641752835417,22.79481685,144.39,144.3,10.03]
[1641752835418,22.79481685,144.39,144.32,1.731]
[1641752836720,22.79481685,144.39,144.31,1.731]
[1641752836920,22.79481685,144.39,144.34,10.3901]
[1641752838021,22.79481685,144.39,144.32,10.3912]
[1641752839223,22.79481685,144.39,144.31,4.731]
[1641752839523,1.731,144.38,144.31,1.731]
[1641752840323,12.1249,144.38,144.31,1.731]
[1641752841530,12.1249,144.38,144.27,20.4248]
[1641752841723,79.2056,144.37,144.27,20.4248]
[1641752841924,12.1274,144.36,144.27,20.4248]
[1641752842928,0.25,144.35,144.28,0.25]
[1641752843127,0.25,144.35,144.27,10.3948]
[1641752844531,10.3954,144.36,144.28,1.982]
[1641752845331,89.6001,144.37,144.28,12.3765]
[1641752845530,89.6001,144.37,144.28,10.6445]
[1641752847332,79.2056,144.37,144.29,26.72382181]
[1641752847534,79.2056,144.37,144.31,10.3924]
[1641752847961,79.2056,144.37,144.32,0.25]
[1641752849266,79.2056,144.37,144.32,10.6416]
[1641752849468,22.79481685,144.39,144.32,10.6416]
[1641752849962,0.25,144.38,144.32,10.3916]
[1641752850165,0.25,144.38,144.29,28.45482181]
[1641752850166,1.981,144.38,144.29,28.45482181]
[1641752850363,1.981,144.38,144.3,0.25]
[1641752851664,1.981,144.38,144.3,10.393]
[1641752851864,0.25,144.38,144.31,0.25]
[1641752853865,28.0,144.37,144.3,9.643]
[1641752855267,28.0,144.37,144.31,0.25]
[1641752856868,28.0,144.37,144.29,0.25]
[1641752857072,1.732,144.36,144.28,10.394]
[1641752857369,29.732,144.37,144.28,20.424]
[1641752857570,104.2924,144.37,144.28,20.424]
[1641752857771,0.25,144.36,144.28,20.424]
[1641752858369,0.25,144.36,144.29,0.25]
[1641752858569,0.25,144.36,144.29,10.6432]
[1641752858769,0.25,144.36,144.29,10.3932]
[1641752859470,0.25,144.36,144.27,0.25]
[1641752859669,1.732,144.35,144.27,0.25]
[1641752859870,0.25,144.34,144.27,3.25]
[1641752860170,0.25,144.34,144.27,13.3948]
[1641752860373,0.25,144.34,144.26,1.732]
[1641752860571,0.25,144.34,144.25,5.65062479]
[1641752860771,1.732,144.33,144.26,0.25]
[1641752860972,24.41155436,144.32,144.26,0.25]
[1641752861372,24.16155436,144.32,144.26,0.25]
[1641752861573,24.16155436,144.32,144.27,1.732]
[1641752861773,24.16155436,144.32,144.26,0.25]
[1641752861975,24.16155436,144.32,144.25,1.982]
[1641752862574,24.16155436,144.32,144.25,1.732]
[1641752862774,0.25,144.31,144.24,3.91862479]
[1641752862977,1.732,144.3,144.24,3.91862479]
[1641752863374,0.25,144.29,144.24,3.91862479]
[1641752863573,1.732,144.28,144.24,3.91862479]
[1641752863775,1.732,144.28,144.22,3.92688582]
[1641752863975,0.25,144.27,144.22,3.92688582]
[1641752864574,0.25,144.27,144.21,3.91862479]
[1641752864775,0.25,144.27,144.2,14.32708582]
[1641752864776,1.733,144.3,144.2,3.92688582]
[1641752864975,3.0,144.31,144.21,1.78082586]
[1641752865178,24.16155436,144.32,144.21,1.78082586]
[1641752865377,1.732,144.31,144.21,1.732]
[1641752865580,1.732,144.31,144.21,5.65062479]
[1641752865977,1.732,144.31,144.21,7.43145065]
[1641752866178,1.732,144.31,144.22,27.25230218]
[1641752866383,1.732,144.31,144.22,27.50230218]
[1641752866981,1.732,144.31,144.22,34.76730218]
[1641752867186,1.732,144.37,144.23,12.022]
[1641752867383,12.29,144.38,144.24,0.25]
[1641752867581,12.29,144.38,144.25,11.762]
[1641752867582,1.732,144.38,144.25,11.762]
[1641752867784,3.0,144.37,144.25,17.893]
[1641752867982,29.39723232,144.37,144.26,5.29082586]
[1641752868285,29.39723232,144.37,144.28,28.80613756]
[1641752868582,3.0,144.37,144.32,10.3917]
[1641752870384,0.25,144.36,144.32,10.3917]
[1641752871688,0.25,144.36,144.29,0.25]
[1641752871888,0.25,144.36,144.3,10.3926]
[1641752873290,0.25,144.36,144.29,10.6439]
[1641752873988,0.25,144.36,144.29,0.25]
[1641752874194,0.25,144.36,144.28,0.25]
[1641752874389,1.982,144.36,144.28,0.25]
[1641752874590,1.982,144.36,144.28,30.98442777]
[1641752874788,1.982,144.36,144.28,30.73442777]
[1641752874989,0.25,144.36,144.28,30.73442777]
[1641752875792,0.25,144.36,144.28,41.12872777]
[1641752876391,0.25,144.36,144.28,10.3943]
[1641752876593,3.25,144.36,144.27,1.732]
[1641752876890,1.732,144.35,144.25,22.5709]
[1641752877091,10.3977,144.33,144.25,22.5709]
[1641752877290,1.732,144.32,144.24,20.427]
[1641752877491,0.25,144.31,144.23,36.50163581]
[1641752877691,0.25,144.31,144.23,30.85101102]
[1641752878692,1.732,144.3,144.23,30.85101102]
[1641752878892,0.25,144.29,144.23,30.85101102]
[1641752879192,1.982,144.31,144.23,30.85101102]
[1641752879793,1.982,144.31,144.24,0.25]
[1641752879992,0.25,144.31,144.24,10.6474]
[1641752880193,77.2169,144.32,144.24,10.6474]
[1641752880400,1.732,144.35,144.24,10.6474]
[1641752880595,1.732,144.35,144.25,1.732]
[1641752880993,1.732,144.35,144.26,0.25]
[1641752881196,78.5702,144.36,144.27,1.732]
[1641752881394,78.5702,144.36,144.28,10.6446]
[1641752881395,80.3022,144.36,144.28,10.6446]
[1641752881633,80.3022,144.36,144.28,0.25]
[1641752882596,78.5702,144.36,144.3,10.3931]
[1641752884296,1.732,144.38,144.3,10.3931]
[1641752884499,0.25,144.37,144.3,10.3931]
[1641752884698,73.4662,144.39,144.33,10.3907]
[1641752884997,73.4662,144.39,144.34,0.25]
[1641752885196,73.4662,144.39,144.32,1.731]
[1641752885398,73.4662,144.39,144.33,0.25]
[1641752885798,73.4662,144.39,144.34,10.3903]
[1641752887001,68.4662,144.39,144.34,10.3903]
[1641752888302,68.4662,144.39,144.33,0.25]
[1641752891134,68.4662,144.39,144.32,0.25]
[1641752891332,68.4662,144.39,144.31,3.69066707]
[1641752891532,1.981,144.38,144.31,1.95966707]
[1641752891731,4.981,144.38,144.3,1.95966707]
[1641752891932,15.3753,144.38,144.3,1.95966707]
[1641752892834,4.981,144.38,144.28,26.98779819]
[1641752893035,4.731,144.38,144.28,26.98779819]
[1641752893236,1.731,144.38,144.29,0.25]
[1641752893937,1.731,144.38,144.31,10.3923]
[1641752894139,70.1972,144.39,144.31,10.3923]
[1641752894339,70.1972,144.39,144.32,0.25]
[1641752894539,0.25,144.38,144.32,0.25]
[1641752894939,68.4662,144.39,144.32,0.25]
[1641752895141,68.4662,144.39,144.29,1.95966707]
[1641752895142,70.1972,144.39,144.29,1.95966707]
[1641752895338,70.1972,144.39,144.32,10.3917]
[1641752895539,70.1972,144.39,144.3,0.25]
[1641752895738,70.1972,144.39,144.3,1.981]
[1641752896539,70.1972,144.39,144.33,10.3909]
[1641752896739,68.4662,144.39,144.33,10.3909]
[1641752897539,68.4662,144.39,144.3,3.44066707]
[1641752897540,97.96524577,144.39,144.3,3.44066707]
[1641752898341,97.96524577,144.39,144.31,0.25]
[1641752898639,97.96524577,144.39,144.32,10.3915]
[1641752898842,0.25,144.38,144.3,3.44066707]
[1641752899041,4.981,144.38,144.3,1.95966707]
[1641752899842,4.981,144.38,144.28,1.731]
[1641752900042,15.3753,144.38,144.27,12.35496707]
[1641752900242,15.3753,144.38,144.27,1.95966707]
[1641752900442,17.15612586,144.38,144.27,1.95966707]
[1641752900645,17.15612586,144.38,144.26,1.95966707]
[1641752900842,15.3753,144.38,144.26,1.95966707]
[1641752901244,22.714,144.37,144.26,1.95966707]
[1641752901449,12.3782,144.36,144.26,1.95966707]
[1641752901646,15.3782,144.36,144.25,14.08836707]
[1641752901846,15.3782,144.36,144.26,0.25]
[1641752902047,15.3782,144.36,144.25,3.69166707]
[1641752902245,15.3782,144.36,144.26,1.95966707]
[1641752902746,15.3782,144.36,144.26,12.35556707]
[1641752903547,12.3782,144.36,144.26,12.35556707]
[1641752903748,12.3782,144.36,144.26,10.3959]
[1641752904447,12.3782,144.36,144.27,10.6452]
[1641752904849,12.3782,144.36,144.27,10.3952]
[1641752905446,12.3782,144.36,144.26,1.95966707]
[1641752905847,14.15902586,144.36,144.26,1.95966707]
[1641752906048,10.03,144.35,144.24,1.95966707]
[1641752906247,80.1309,144.34,144.24,1.95966707]
[1641752906448,10.4,144.3,144.24,1.95966707]
[1641752906655,24.8511,144.32,144.24,1.95966707]
[1641752906849,1.732,144.32,144.24,1.95966707]
[1641752907051,1.732,144.32,144.21,29.50546215]
[1641752907052,3.0,144.31,144.25,1.982]
[1641752907250,19.38369671,144.33,144.25,0.25]
[1641752907451,19.38369671,144.33,144.24,1.732]
[1641752907649,19.38369671,144.33,144.24,1.232]
[1641752907850,19.38369671,144.33,144.25,1.95966707]
[1641752908851,19.38369671,144.33,144.25,12.35646707]
[1641752910353,1.982,144.32,144.25,12.35646707]
[1641752910551,1.982,144.32,144.25,1.95966707]
[1641752910753,0.25,144.32,144.25,1.95966707]
[1641752910952,0.25,144.32,144.23,10.3976]
[1641752910953,0.25,144.32,144.24,1.95966707]
[1641752911856,10.3986,144.32,144.24,1.95966707]
[1641752912053,12.1306,144.32,144.24,1.95966707]
[1641752912355,12.1306,144.32,144.23,10.3976]
[1641752912356,1.732,144.32,144.23,12.35726707]
[1641752913355,0.25,144.31,144.23,12.35726707]
[1641752914456,1.732,144.32,144.24,0.25]
[1641752914655,31.51379671,144.33,144.24,10.6474]
[1641752914858,0.25,144.32,144.24,10.6474]
[1641752915056,0.25,144.32,144.24,12.60706707]
[1641752916167,26.1328,144.34,144.25,1.732]
[1641752916465,26.1328,144.34,144.25,12.1281]
[1641752917966,0.25,144.33,144.25,12.1281]
[1641752918166,0.25,144.33,144.25,10.3961]
[1641752918367,36.5299,144.34,144.25,10.3961]
[1641752918569,36.5299,144.34,144.25,12.1281]
[1641752918868,0.25,144.33,144.25,12.1281]
[1641752919268,0.25,144.33,144.25,14.08776707]
[1641752919670,0.25,144.33,144.25,3.69166707]
[1641752920268,0.25,144.33,144.25,1.732]
[1641752920771,103.8134,144.34,144.25,1.732]
[1641752920968,102.0814,144.34,144.25,1.732]
[1641752921168,0.25,144.33,144.25,1.732]
[1641752921769,103.8134,144.34,144.25,3.69166707]
[1641752921968,102.0814,144.34,144.26,0.25]
[1641752922670,0.25,144.33,144.26,0.25]
[1641752922893,0.25,144.33,144.25,1.95966707]
[1641752924392,0.25,144.33,144.24,12.35646707]
[1641752924592,1.732,144.32,144.24,12.35646707]
[1641752925893,10.6479,144.33,144.24,12.35646707]
[1641752926596,10.6479,144.33,144.25,1.95966707]
[1641752926794,1.732,144.32,144.25,1.95966707]
[1641752926994,0.25,144.31,144.25,1.95966707]
[1641752927397,0.25,144.31,144.24,1.95966707]
[1641752928994,1.732,144.32,144.24,1.95966707]
[1641752929597,3.0,144.31,144.24,1.95966707]
[1641752930297,3.0,144.31,144.24,12.35706707]
[1641752930704,3.0,144.32,144.24,12.35706707]
[1641752930905,3.25,144.32,144.24,12.35706707]
[1641752931106,3.0,144.32,144.24,12.35706707]
[1641752933410,0.25,144.31,144.25,1.732]
[1641752933616,0.25,144.31,144.24,12.35706707]
[1641752933909,0.25,144.31,144.25,1.95966707]
[1641752934509,4.732,144.32,144.25,1.95966707]
[1641752934709,3.0,144.32,144.25,10.3968]
[1641752935311,2.9751811,144.33,144.25,10.3968]
[1641752935510,1.2431811,144.33,144.26,0.25]
[1641752935911,1.2431811,144.33,144.26,10.646]
[1641752936811,1.2431811,144.33,144.26,12.60566707]
[1641752937417,1.2431811,144.33,144.26,12.35566707]
[1641752939017,1.2431811,144.33,144.27,29.08368009]
[1641752939816,1.2431811,144.33,144.27,31.04334716]
[1641752940018,1.2431811,144.33,144.28,10.03]
[1641752940420,1.2431811,144.33,144.29,0.25]
[1641752940617,1.2431811,144.33,144.29,2.20966707]
[1641752940816,1.2431811,144.33,144.3,10.3931]
[1641752941017,1.2431811,144.33,144.3,9.8931]
[1641752942849,1.2431811,144.33,144.28,22.1561]
[1641752943048,1.2431811,144.33,144.28,20.4241]
[1641752943248,1.2431811,144.33,144.28,10.03]
[1641752943948,23.74392943,144.33,144.28,10.03]
[1641752945251,1.2431811,144.33,144.28,10.03]
[1641752945454,1.2431811,144.33,144.29,0.25]
[1641752945650,1.2431811,144.33,144.29,1.732]
[1641752945851,1.2431811,144.33,144.27,3.94166707]
[1641752946153,1.2431811,144.33,144.27,1.95966707]
[1641752946351,1.2431811,144.33,144.26,11.98966707]
[1641752946552,1.2431811,144.33,144.28,0.25]
[1641752947352,1.2431811,144.33,144.29,1.732]
[1641752947753,1.2431811,144.33,144.3,0.25]
[1641752948154,1.2431811,144.33,144.29,1.732]
[1641752948354,1.2431811,144.33,144.3,0.25]
[1641752948757,1.2431811,144.33,144.3,10.3927]
[1641752955364,1.2431811,144.33,144.3,36.7834074]
[1641752956564,1.2431811,144.33,144.3,10.3927]
[1641752956767,1.2431811,144.33,144.28,10.3939]
[1641752964171,1.2431811,144.33,144.29,10.03]
[1641752964371,1.2431811,144.33,144.29,12.272]
[1641752964574,1.2431811,144.33,144.31,10.3908]
[1641752968581,1.2431811,144.33,144.32,3.0]
[1641752968784,1.732,144.39,144.33,43.0]
[1641752968985,1.732,144.39,144.34,0.51]
[1641752969183,1.82985523,144.4,144.34,13.54]
[1641752969381,1.82985523,144.4,144.34,22.202]
[1641752969581,1.82985523,144.4,144.35,24.49990485]
[1641752969783,1.82985523,144.4,144.36,1.731]
[1641752969983,5.14739995,144.43,144.37,85.3872]
[1641752969984,3.41639995,144.43,144.37,85.3872]
[1641752970185,3.41639995,144.43,144.38,11.761]
[1641752970385,21.59562695,144.41,144.38,15.271]
[1641752970586,3.41639995,144.43,144.38,15.271]
[1641752970788,3.41639995,144.49,144.39,1.78082586]
[1641752970985,3.41639995,144.49,144.41,30.73223457]
[1641752971189,3.41639995,144.49,144.42,11.76]
[1641752971390,3.41639995,144.49,144.45,10.3821]
[1641752971985,77.29759475,144.52,144.45,10.3821]
[1641752972386,77.29759475,144.52,144.46,0.25]
[1641752972786,77.29759475,144.52,144.48,10.3801]
[1641752972986,0.50969475,144.52,144.48,10.3801]
[1641752974386,0.50969475,144.52,144.48,20.4101]
[1641752975694,0.50969475,144.52,144.5,10.3764]
[1641752975893,0.50969475,144.52,144.5,20.4064]
[1641752976294,0.00969475,144.52,144.5,20.4064]
[1641752976501,1.929,144.59,144.56,62.11915849]
[1641752976694,14.02299995,144.65,144.57,76.0]
[1641752976695,52.26023822,144.6,144.57,76.0]
[1641752976894,3.41639995,144.65,144.6,12.36755307]
[1641752977098,3.41639995,144.65,144.61,1.728]
[1641752977295,3.41639995,144.65,144.62,1.81450546]
[1641752977495,8.50964747,144.75,144.66,39.0]
[1641752977695,3.88564091,144.71,144.66,46.987]
[1641752977994,171.6,144.77,144.68,76.0]
[1641752978196,171.6,144.77,144.69,137.097]
[1641752978396,171.6,144.77,144.7,18.04500055]
[1641752978595,70.8634,144.77,144.72,125.34]
[1641752978795,3.88033256,144.86,144.78,14.21977938]
[1641752979004,3.88033256,144.86,144.79,12.006]
[1641752979198,3.88033256,144.86,144.79,15.076]
[1641752979398,5.82049885,144.89,144.79,15.076]
[1641752979598,5.82049885,144.89,144.8,2.59154018]
[1641752979801,5.82049885,144.89,144.79,15.076]
[1641752979802,5.82049885,144.89,144.81,10.1]
[1641752980001,1.725,144.92,144.84,10.3493]
[1641752980199,1.725,144.92,144.85,10.03]
[1641752980601,1.725,144.95,144.85,10.03]
[1641752981000,24.90809705,144.94,144.85,10.03]
[1641752981204,1.725,144.93,144.89,7.6691]
[1641752981406,3.50582586,144.93,144.81,10.03]
[1641752981606,3.0,144.92,144.81,10.03]
[1641752981806,1.725,144.91,144.81,10.03]
[1641752982003,1.975,144.91,144.81,10.03]
[1641752982204,32.96402927,144.9,144.81,20.3849]
[1641752982404,1.975,144.89,144.81,20.3849]
[1641752983629,1.975,144.89,144.78,14.21977938]
[1641752983630,1.975,144.89,144.79,10.3566]
[1641752983831,1.975,144.89,144.78,14.21977938]
[1641752984032,3.0,144.88,144.78,14.21977938]
[1641752984233,76.0,144.86,144.72,10.03]
[1641752984432,26.66167552,144.85,144.7,10.03]
[1641752984631,26.66167552,144.85,144.68,1.726]
[1641752984632,46.08067552,144.85,144.69,10.03]
[1641752984833,78.5,144.84,144.7,10.3629]
[1641752985030,4.726,144.83,144.7,12.0889]
[1641752985231,27.65874692,144.82,144.7,10.3629]
[1641752985436,1.976,144.81,144.7,10.3629]
[1641752985632,4.976,144.81,144.69,10.03]
[1641752985834,6.75682586,144.81,144.69,10.03]
[1641752986031,6.75682586,144.81,144.69,8.65]
[1641752986032,6.50682586,144.81,144.69,8.65]
[1641752986236,16.87182586,144.81,144.69,8.65]
[1641752986435,16.87182586,144.81,144.66,10.03]
[1641752986666,22.48286377,144.79,144.62,10.03]
[1641752986842,1.727,144.78,144.63,1.727]
[1641752987040,4.727,144.78,144.63,3.50782586]
[1641752987441,4.727,144.78,144.64,11.81082586]
[1641752987643,3.0,144.78,144.65,1.727]
[1641752987840,3.0,144.81,144.66,10.03]
[1641752988040,3.0,144.81,144.67,1.727]
[1641752988041,1.727,144.8,144.67,1.727]
[1641752988241,1.727,144.8,144.69,10.3636]
[1641752988442,22.98075586,144.79,144.7,2.237]
[1641752988742,22.98075586,144.79,144.7,1.977]
[1641752989142,1.727,144.8,144.7,12.007]
[1641752989345,115.66114187,144.82,144.71,5.04082586]
[1641752989543,115.66114187,144.82,144.72,1.726]
[1641752989743,115.66114187,144.82,144.73,10.03]
[1641752990043,25.16642109,144.87,144.74,0.25]
[1641752990244,25.16642109,144.87,144.78,34.5149]
[1641752990452,25.16642109,144.87,144.81,10.3545]
[1641752990644,25.16642109,144.87,144.79,0.25]
[1641752991045,25.16642109,144.87,144.79,1.976]
[1641752991645,25.16642109,144.87,144.79,0.25]
[1641752991847,25.16642109,144.87,144.76,1.726]
[1641752992247,3.0,144.86,144.76,1.726]
[1641752992443,1.726,144.85,144.73,1.726]
[1641752992644,30.01359555,144.84,144.73,1.726]
[1641752992846,1.726,144.83,144.73,1.726]
[1641752993048,1.976,144.83,144.73,1.726]
[1641752993544,10.022,144.83,144.73,1.726]
[1641752993746,1.78082586,144.82,144.73,1.726]
[1641752993945,1.78082586,144.82,144.7,12.0889]
[1641752993946,29.85389024,144.81,144.7,12.0889]
[1641752994170,3.0,144.8,144.7,12.0889]
[1641752994378,1.977,144.79,144.7,10.3629]
[1641752994577,1.727,144.79,144.7,22.1199]
[1641752994774,27.87789024,144.81,144.7,23.90072586]
[1641752994972,27.87789024,144.81,144.7,23.84753647]
[1641752996073,27.87789024,144.81,144.7,22.06671061]
[1641752996272,27.87789024,144.81,144.72,10.3617]
[1641752996473,1.727,144.84,144.73,0.25]
[1641752996675,76.8105,144.85,144.73,6.6]
[1641752996876,76.8105,144.85,144.74,0.25]
[1641752997076,76.8105,144.85,144.75,1.726]
[1641752997478,101.14246548,144.85,144.76,0.25]
[1641752997676,0.25,144.84,144.75,1.726]
[1641752997876,1.976,144.84,144.74,12.0861]
[1641752998076,1.976,144.84,144.74,10.3601]
[1641752998476,1.726,144.84,144.74,10.3601]
[1641752998678,0.25,144.83,144.74,10.3601]
[1641752999678,0.25,144.83,144.72,10.3615]
[1641752999878,1.726,144.82,144.7,10.03]
[1641753000078,24.45048528,144.81,144.7,10.03]
[1641753000281,1.727,144.8,144.7,10.03]
[1641753000479,0.25,144.79,144.7,10.03]
[1641753000688,29.98299516,144.78,144.7,10.03]
[1641753001080,1.727,144.78,144.7,10.03]
[1641753001280,3.0,144.81,144.7,10.03]
[1641753001281,4.727,144.81,144.71,1.727]
[1641753001479,3.0,144.81,144.71,1.727]
[1641753001680,3.0,144.81,144.69,1.726]
[1641753001882,3.0,144.82,144.69,2.236]
[1641753002084,30.45889771,144.81,144.69,2.236]
[1641753002683,0.25,144.8,144.69,1.986]